Cogmind - Beta 15 @@@ ROGUE MODE // 2025.08.29 @ 21:36:33 Player: Petvaria Result: Destroyed by as-01598 with Assembled Heavy Rifle Performance ------------- Evolutions (0) 0 Regions Visited (2) 400 Robots Destroyed (19) 95 Value Destroyed (502) 502 Prototype IDs (0) 0 Alien Tech Used (0) 0 Bonus (0) 0 TOTAL SCORE: 997 Bonus ------- None Cogmind --------- Core Integrity 0/250 Matter 250/300 Energy 125/125 System Corruption 0% Temperature Cool (0) Movement Treading (160) Location -10/Mines Parts ------- > --- POWER (1) -------- Light Ion Engine > --- PROPULSION (2) --- Light Treads > --- UTILITY (2) ------ Small Storage Unit > --- WEAPON (2) ------- Assault Rifle Light Assault Rifle > --- INVENTORY (8) ---- Light Nuclear Core Hacking Suite Small Laser Datajack Mining Claw Peak State ------------ > --- POWER ------------ Light Ion Engine > --- PROPULSION ------- Light Treads Light Treads > --- UTILITY ---------- Small Storage Unit > --- WEAPON ----------- Medium Laser Light Assault Rifle > --- INVENTORY -------- Light Ion Engine Light Nuclear Core Wheel Compact Wheel Hacking Suite Small Laser Small Laser Datajack [Rating: 7] Favorites ----------- Power Light Ion Engine Engine Light Ion Engine Propulsion Light Treads Treads Light Treads Utility Small Storage Unit Storage Small Storage Unit Weapon Light Assault Rifle Energy Gun Medium Laser Ballistic Gun Light Assault Rifle Build | -11 -10 -10 ------- Run | Yrd Mat Min Slots Evolved . | . . . Power . | . . . Propulsion . | . . . Utility . | . . . Weapon . | . . . Parts Attached 10 | 6 1 3 Power 3 | 1 . 2 Engine 3 | 1 . 2 Core . | . . . Reactor . | . . . Propulsion 3 | 2 1 . Treads 3 | 2 1 . Leg . | . . . Wheel . | . . . Hover . | . . . Flight . | . . . Utility 1 | 1 . . Device . | . . . Storage 1 | 1 . . Processor . | . . . Hackware . | . . . Protection . | . . . Artifact . | . . . Weapon 3 | 2 . 1 Energy Gun 1 | 1 . . Energy Cannon . | . . . Ballistic Gun 2 | 1 . 1 Ballistic Cannon . | . . . Launcher . | . . . Special Weapon . | . . . Impact Weapon . | . . . Slashing Weapon . | . . . Piercing Weapon . | . . . Special Melee Weapon . | . . . Unidentified Prototypes . | . . . Parts Lost 4 | . . 4 Power 1 | . . 1 Propulsion 2 | . . 2 Utility . | . . . Weapon 1 | . . 1 Highest Loss Streak 2 | . . 2 To Critical Strikes . | . . . Average Backups 6 | 2 6 7 Power 1 | . 1 1 Propulsion 1 | . 1 . Utility . | . . 1 Weapon 2 | 1 2 2 Tool/Special . | . . . Unused Backups 8 | . 3 5 Power 1 | . . 1 Propulsion 2 | . 2 . Utility 1 | . . 1 Weapon 3 | . 1 2 Tool/Special 1 | . . 1 Average Slot Usage (%) 81 | . 85 75 Engine 13 | . 14 13 Treads 24 | . 28 18 Storage 14 | . 14 14 Energy Gun 10 | . 14 5 Ballistic Gun 17 | . 14 22 Peak Build Rating 7 | 6 7 7 Average Rating 6 | 3 6 6 On Entrance 4 | . 6 7 Naked Turns . | . . . Heaviest Build 11 | 11 11 11 Greatest Support 40 | 40 40 40 Greatest Overweight (x) . | . . . Average Overweight (x) . | . . . Largest Inventory Capacity 8 | 8 8 8 Average Capacity 7 | 6 8 8 Most Carried 8 | 5 8 8 Average Carried 6 | 2 6 7 Final Capacity 8 | 8 8 8 Final Carried 8 | 4 8 5 Class Distribution -------------------- 100% | Mutant Dominant Class ---------------- Mutant | -10/Materials Mutant | -10/Mines Resources | -11 -10 -10 ----------- Run | Yrd Mat Min Matter Collected 386 | 215 94 77 Remotely . | . . . Salvage Created 645 | . 421 224 Parts 42 | . 25 17 Haulers Intercepted . | . . . Recyclers Shooed 2 | . 2 . Parts Field Recycled . | . . . Retrieved Matter . | . . . Parts Self-Destructed . | . . . Prevented . | . . . Kills | -11 -10 -10 ------- Run | Yrd Mat Min Combat Hostiles Destroyed 14 | . 6 8 Guns 14 | . 6 8 Classes Destroyed 5 | . 4 1 Recycler 1 | . 1 . Operator 2 | . 2 . Watcher 2 | . 2 . Swarmer 4 | . . 4 Grunt 10 | . 6 4 Best Kill Streak 3 | . 2 3 Combat Bots Only 3 | . 2 3 Max Kills in Single Turn 1 | . 1 1 Gunslinging . | . . . Exploded . | . . . Melee . | . . . Uniques/NPCs Destroyed . | . . . Combat | -11 -10 -10 -------- Run | Yrd Mat Min Hostile Shots Fired 106 | . 41 65 Missed 30 | . 13 17 Hits 76 | . 28 48 Projectile 76 | . 28 48 Critical Strikes 4 | . 2 2 Damage Taken 945 | . 344 601 Core 259 | . 111 148 Absorbed by Shields . | . . . Core Remaining (%) 100 | 100 . . Volleys Fired 79 | . 49 30 Largest 2 | . 2 2 Hottest 70 | . 70 70 Shots Fired 152 | . 93 59 Gun 152 | . 93 59 Cannon . | . . . Launcher . | . . . Special . | . . . Kinetic 99 | . 49 50 Thermal 53 | . 44 9 Explosive . | . . . Electromagnetic . | . . . Robot Hit Streak 13 | . 8 13 Robot Miss Streak 6 | . 2 6 Penetration Max . | . . . Secondary Targets 2 | . . 2 Max Gunslinging Chain 1 | . . 1 Shots Hit Robots 94 | . 58 36 Core Hits 43 | . 25 18 Critical Kills . | . . . Critical Parts Destroyed 1 | . 1 . Critical Strikes 4 | . 4 . Burn 3 | . 3 . Destroy 1 | . 1 . Melee Attacks . | . . . Impact . | . . . Slashing . | . . . Piercing . | . . . Sneak Attacks . | . . . Combat Hostiles . | . . . Follow-up Attacks . | . . . Damage Inflicted 1028 | . 667 361 Guns 1028 | . 667 361 Cannons . | . . . Explosions . | . . . Melee . | . . . Ramming . | . . . Kinetic 501 | . 215 286 Thermal 527 | . 452 75 Explosive . | . . . Electromagnetic . | . . . Impact . | . . . Slashing . | . . . Piercing . | . . . Highest Corruption . | . . . Average Corruption . | . . . Corruption Purged . | . . . Corruption Blocked . | . . . Overload Shots . | . . . Overflow Damage . | . . . Projectiles . | . . . Explosions . | . . . Melee . | . . . Knockbacks . | . . . Impact . | . . . Kinetic . | . . . Secondary . | . . . Self-Inflicted Damage . | . . . Shots . | . . . Rammed . | . . . Targets Rammed . | . . . Kicked . | . . . Crushed . | . . . Highest Temperature 239 | . 239 162 Average Temperature 68 | . 70 61 Received Heat Transfer 405 | . 255 150 Siege Activations . | . . . Martial Activations . | . . . Shielding Activations . | . . . Robots Disrupted . | . . . Combat Hostiles . | . . . Robots Corrupted . | . . . Combat Hostiles . | . . . Parts Fried . | . . . Impact Corruptions . | . . . Robots Melted . | . . . Combat Hostiles . | . . . Parts Melted . | . . . Heat Transferred 1776 | . 1554 222 Parts Sabotaged . | . . . Parts Stolen . | . . . Parts Stripped . | . . . Power Chain Reactions . | . . . Alert | -11 -10 -10 ------- Run | Yrd Mat Min Maximum Alert Level . | . . . Low Security (%) 100 | 100 100 100 Level 1 . | . . . Level 2 . | . . . Level 3 . | . . . Level 4 . | . . . Level 5 . | . . . High Security . | . . . Max Security . | . . . Peak Influence 76 | . 65 76 Initial . | . . . Average 13 | . 10 20 Influence Increases 434 | . 204 230 Destroy 0b10 Robot/C 280 | . 120 160 Destroy 0b10 Robot/NC 25 | . 25 . Destroy Leader 84 | . 44 40 Lose Combat Pursuer 45 | . 15 30 Influence Decreases 416 | . 204 212 Time Decay 376 | . 204 172 Lost Part 40 | . . 40 Squads Dispatched 2 | . 2 . Investigation . | . . . Extermination . | . . . Reinforcement 2 | . 2 . Assault . | . . . Garrison . | . . . Intercept . | . . . Searches Triggered . | . . . Construction Impeded . | . . . Haulers Reinforced . | . . . Active Scanning Responses . | . . . Cargo Convoy Interrupts . | . . . Stealth | -11 -10 -10 --------- Run | Yrd Mat Min Distress Signals 2 | . 2 . Communications Jammed . | . . . Distress Signals . | . . . Times Spotted 42 | . 20 22 Peak Tracking Total 20 | . 3 20 Tactical Retreats 3 | . 1 2 Traps | -11 -10 -10 ------- Run | Yrd Mat Min Traps Triggered . | . . . Indirectly . | . . . Trap Hack Attempts . | . . . Triggered . | . . . Disarmed . | . . . Reprogrammed . | . . . Reused . | . . . Traps Extracted . | . . . Installed . | . . . Triggered . | . . . Machines | -11 -10 -10 ---------- Run | Yrd Mat Min Machines Disabled . | . . . Max in Single Turn . | . . . Machines Repaired . | . . . Machines Dismantled . | . . . Machines Sabotaged . | . . . Overloaded Fab Kills . | . . . Hacking | -11 -10 -10 --------- Run | Yrd Mat Min Machines Accessed . | . . . Terminals . | . . . Fabricators . | . . . Repair Stations . | . . . Recycling Units . | . . . Scanalyzers . | . . . Garrison Access . | . . . Total Hacks . | . . . Successful . | . . . Failed . | . . . Catastrophic . | . . . Database Lockouts . | . . . Manual . | . . . Terminals . | . . . Fabricators . | . . . Repair Stations . | . . . Recycling Units . | . . . Scanalyzers . | . . . Garrison Access . | . . . Terminal Hacks . | . . . Fabricator Hacks . | . . . Repair Station Hacks . | . . . Recycling Unit Hacks . | . . . Scanalyzer . | . . . Garrison Access Hacks . | . . . Unauthorized Hacks . | . . . Terminals . | . . . Fabricators . | . . . Repair Stations . | . . . Recycling Units . | . . . Scanalyzers . | . . . Garrison Access . | . . . Data Cores Recovered . | . . . Used . | . . . Hacking Detections . | . . . Full Trace Events . | . . . Feedback Events . | . . . Feedback Blocked . | . . . Robot Schematics Acquired . | . . . Robots Built . | . . . Authchips . | . . . Time . | . . . Total Robot Build Rating . | . . . Part Schematics Acquired . | . . . Parts Built . | . . . Authchips . | . . . Time . | . . . Total Part Build Rating . | . . . Parts Repaired . | . . . Time . | . . . Parts Recycled . | . . . Recycled Matter . | . . . Retrieved Matter . | . . . Retrieved Components . | . . . Parts Scanalyzed . | . . . Part Schematics Acquired . | . . . Parts Damaged . | . . . Bothacking | -11 -10 -10 ------------ Run | Yrd Mat Min Used RIF Installer . | . . . Robots Hacked . | . . . Non-combat . | . . . Combat . | . . . Robot Hacks Applied . | . . . Relay Couplers Released . | . . . Fabnet Peak Effective % . | . . . Robots Rewired . | . . . Allies Hacked . | . . . Hacks Repelled . | . . . Allies | -11 -10 -10 -------- Run | Yrd Mat Min Total Allies . | . . . Largest Group . | . . . Highest-Rated Group . | . . . Highest-Rated Ally . | . . . Total Orders . | . . . Ally Attacks . | . . . Total Damage . | . . . Kills . | . . . Allies Corrupted . | . . . Allies Melted . | . . . Intel | -11 -10 -10 ------- Run | Yrd Mat Min Active Infowar (turns) . | . . . Robot Analysis Total . | . . . Derelict Logs Recovered 1 | . . 1 Drone Launches . | . . . Drone Recoveries . | . . . Exploration | -11 -10 -10 ------------- Run | Yrd Mat Min Turns Passed 1720 | 87 990 643 Spaces Moved 852 | 49 472 331 Core 6 | 6 . . Treads 846 | 43 472 331 Legs . | . . . Wheels . | . . . Hover . | . . . Flight . | . . . Fastest Speed 50 | 50 160 160 Average Speed 159 | 146 160 160 Slowest Speed 160 | 160 160 160 Overloaded Moves . | . . . Propulsion Burnouts . | . . . Robots Hopped . | . . . Potential Cave-ins . | . . . Cave-ins Triggered . | . . . Exploration Rate (%) 43 | 4 56 70 Regions Visited 2 Branch Regions 1 Pre-discovered Areas . | . . . Known Exits Taken . | . . . Unknown Exits Taken 2 | 1 1 . Scrap Searched . | . . . Spaces Dug . | . . . Terrain Destroyed . | . . . Melee . | . . . Projectile . | . . . AOE . | . . . Terrain Rammed . | . . . Walls Destroyed . | . . . Machines Disabled . | . . . Actions | -11 -10 -10 --------- Run | Yrd Mat Min Total 1081 | 64 626 391 Wait 119 | . 94 25 Move 850 | 48 471 331 Hop . | . . . Pick Up 17 | 10 7 . Fast Attach . | . . . Attach 9 | 6 . 3 Detach . | . . . Swap 2 | . 1 1 Drop 5 | . 4 1 Fire 79 | . 49 30 Melee . | . . . Ram . | . . . Kick . | . . . Crush . | . . . Escape Stasis . | . . . Rewire . | . . . Trap . | . . . Miscellaneous . | . . . Route ------- -11/Scrapyard -10/Materials (discovered 2 exits: [*Mat] / [*Min]) -10/Mines (discovered 2 exits: [*Mat x2]) History --------- Turn | Location | Event 2 | -11/Scrapyard | Met Revision 17 6 | -11/Scrapyard | Discovered new exit (range 15) 88 | -11/Scrapyard | Entered Materials 317 | -10/Materials | Build established: Mutant 583 | -10/Materials | Discovered new exit (range 8) 962 | -10/Materials | Discovered new exit (range 16) 1078 | -10/Materials | Entered Mines 1081 | -10/Mines | Core integrity fell below 50% 1203 | -10/Mines | Learned Materials trap positions 1204 | -10/Mines | Discovered new exit (range 5) 1524 | -10/Mines | Discovered new exit (range 13) 1661 | -10/Mines | Assembled infested the area 1697 | -10/Mines | Core integrity fell below 20% 1721 | -10/Mines | Destroyed by as-01598 with Assembled Heavy Rifle Last Messages --------------- Lgt. Treads destroyed. Critical hit (Burn: +37). Med. Laser destroyed. Critical hit (Burn: +37). G-47 Trooper destroyed. Acquired 15 matter. EXIT=FOUND G-47 Trooper destroyed. G-34 Mercenary destroyed. R-06 Scavenger collects Imp. Heat Sink. Acquired 24 matter. R-06 Scavenger collects Aluminum Leg. R-06 Scavenger collects Particle Gun. R-06 Scavenger collects Aluminum Leg. Lgt. Ion Engine destroyed. S-10 Pest destroyed. Acquired 14 matter. ALERT: Infestation in the mines, dispatching Demolisher response squad. Lgt. Treads destroyed. Map ----- +----------------------------------------------------+ | ?????????????????????????????????????? | | ?????????????????????????????????????? | | ?????????????????????????????????????? | | ?????????????????????????????????????? | | ?????????????????????????????? ????? | | ?????????????????????????????? ????? | | ?????????????????????????????? "????? | | ?????????????????????????????? ????? | | ?????????????????????????????? ????? | | ?????????????????????????????? ????? | | ?????????????????????????????? ????? | | ?????????????????????????????? ????? | | ?????????????????????????????? ????? | | ????????????????????#?????????# #????? | | ????????????????????# ????????# #????? | | ????????????????????# ##?????# #????? | | ????????????????????# #????# #????? | | ???????????????# ### ##### #????? | | ???????????????# #????? | | ??????????????# #????? | | ??????????????# ###### ####????? | | ???????????????????????????# #???????? | | ???????????????????????????# #???????? | | ???????????????#???????????# #???????? | | ??????????????# ????######## ###?????? | | ?????????????# ????# @ a #?????? | | ????????????? ????# #?????? | | ???????????## ????# """" #?????? | | ???????????? ????# """" #?????? | | ????????????# ????# """" #?????? | | ????????????? #????# #?????? | | ?????????????# #????# """" #?????? | | ?????????????# ###### """" #?????? | | ?????????????# =%* """" #?????? | | ?????????????# ###### #?????? | | ?????????????# #????# #?????? | | ?????????????# #????############?????? | | ?????????????# #???????#####?????????? | | ?????????????# #??????## ##????????? | | ?????????????# #?????## #????????? | | ?????????????# #????## ##???????? | | ?????????????# #???## ##??????? | | ?????????????# #??## ##?????? | | ?????? ??????# #?## ##????? | | ???# ### ### #????? | | < = #????? | | ???????## =%* #????? | | ????????## ##### ## #????? | | ?????????## #???##%#?# #????? | | ??????????## ???# #?# #????? | +----------------------------------------------------+ Best States ------------- Heat Dissipation 25 Energy Generation 10 Energy Capacity 125 Matter Stores 300 Matter Capacity 300 Sight Range 16 Terrain Scan Density 10 Evasion (%) 40 Recoil Reduction 2 Item Schematics ----------------- None Robot Schematics ------------------ None Fabricated ------------ Nothing Repaired ---------- Nothing Alien Tech Used ----------------- None Achievements -------------- None Challenges ------------ None Game ------ Seed MediumPhasingFemtoactuators Manual? 0 Play Time 00:08:44 Cumulative 155.0 hours Start 2025.08.29 @ 21:21:52 End 2025.08.29 @ 21:36:33 Sessions 1 Manual Loads 0 Difficulty Rogue Special Mode None Game No. 138 Rogue 138 Adventurer 0 Explorer 0 Win Type - Total 7 Types 2/0/2/2/0/0/0/0/0/1 Lore% 84 Gallery% 80 Achievement% 60 Wizard Run 0 Options --------- Layout 1 ASCII 0 Keyboard 0 Movement Numpad Keybinds 0 Fullscreen 1 Font 24/Proggy Map View 50x35 Zoom Use 0% Tactical HUD 0 Map Filters NONE Filters NONE Steam 1 RUN: 0aedc688-307e-4ef4-b9a4-bdea719eea30